fUSD/lending_fUSD_20240803
["ID","MTS","AMOUNT","RATE_DAILY","PERIOD"]
[333981236,1722666644793,-150.0,0.00015695,2]
[333981237,1722666644803,-150.0,0.00015699,2]
[333981238,1722666644813,-184.56328383,0.000157,2]
[333981239,1722666644822,-380.35026015,0.00015709,2]
[333981240,1722666644831,-150.0,0.00015709,2]
[333981241,1722666644841,-150.0,0.00015722,2]
[333981242,1722666644850,-380.35026015,0.00015725,2]
[333981243,1722666644860,-150.0,0.00015733,2]
[333981244,1722666644869,-380.35026015,0.00015741,2]
[333981245,1722666644878,-150.0,0.00015745,2]
[333981246,1722666644887,-150.0,0.00015747,2]
[333981247,1722666644897,-150.0,0.00015754,2]
[333981248,1722666644913,-380.35026015,0.00015758,2]
[333981249,1722666644922,-150.0,0.00015768,2]
[333981250,1722666644932,-150.0,0.00015771,2]
[333981251,1722666644942,-380.35026015,0.00015774,2]
[333981252,1722666644951,-380.35026015,0.0001579,2]
[333981253,1722666644961,-150.0,0.00015791,2]
[333981254,1722666644970,-387.79038477,0.00015796,2]
[333981255,1722666644980,-441.7725,0.000158,2]
[333981256,1722666644990,-3354.4,0.000158,2]
[333981257,1722666645000,-415.5,0.000158,2]
[333981258,1722666645011,-380.35026015,0.00015806,2]
[333981259,1722666645020,-150.0,0.00015814,2]
[333981260,1722666645030,-150.0,0.00015815,2]
[333981261,1722666645040,-380.35026015,0.00015822,2]
[333981262,1722666645050,-201.0,0.0001583,2]
[333981263,1722666645059,-150.0,0.00015832,2]
[333981264,1722666645069,-150.0,0.00015838,2]
[333981265,1722666645080,-380.35026015,0.00015838,2]
[333981266,1722666645090,-150.0,0.00015848,2]
[333981267,1722666645099,-380.35026015,0.00015855,2]
[333981268,1722666645109,-150.0,0.00015855,2]
[333981269,1722666645119,-150.0,0.00015861,2]
[333981270,1722666645130,-380.35026015,0.00015871,2]
[333981271,1722666645140,-500.0,0.00015872,2]
[333981272,1722666645152,-150.0,0.00015877,2]
[333981273,1722666645163,-5800.0,0.00015883,2]
[333981274,1722666645173,-150.0,0.00015884,2]
[333981275,1722666645183,-380.35026015,0.00015887,2]
[333981276,1722666645192,-153.05898662,0.0001589,2]
[333981277,1722666645203,-5800.0,0.00015891,2]
[333981278,1722666645213,-153.05898662,0.00015893,2]
[333981279,1722666645223,-153.05898662,0.00015897,2]
[333981280,1722666645233,-82514.304,0.000159,2]
[333981281,1722666645244,-1433.7035,0.000159,2]
[333981282,1722666645254,-14141.9064,0.000159,2]
[333981283,1722666645264,-601.8425,0.000159,2]
[333981284,1722666645273,-11494.3431,0.000159,2]
[333981285,1722666645284,-7500.0,0.000159,2]
[333981286,1722666645293,-184.56328383,0.000159,2]
[333981287,1722666645303,-1000.0,0.000159,2]
[333981288,1722666645314,-10000.0,0.000159,2]
[333981289,1722666645325,-8229.3478,0.000159,2]
[333981290,1722666645335,-575.553,0.000159,2]
[333981291,1722666645345,-153.05898662,0.000159,2]
[333981292,1722666645355,-5800.0,0.000159,2]
[333981293,1722666645365,-1812.01263123,0.000159,2]
[333981294,1722666645374,-380.35026015,0.00015903,2]
[333981295,1722666645385,-150.0,0.00015907,2]
[333981296,1722666645394,-150.0,0.00015916,2]
[333981298,1722666645405,-380.35026015,0.00015919,2]
[333981299,1722666645415,-150.0,0.00015924,2]
[333981300,1722666645425,-380.35026015,0.00015935,2]
[333981302,1722666645435,-150.0,0.00015938,2]
[333981304,1722666645445,-380.35026015,0.00015952,2]
[333981306,1722666645455,-380.35026015,0.00015968,2]
[333981307,1722666645465,-199.70595008,0.00015973,2]
[333981308,1722666645474,-200.10688824,0.00015973,2]
[333981309,1722666645484,-179.09707997,0.00015973,2]
[333981310,1722666645494,-380.35026015,0.00015984,2]
[333981311,1722666645504,-2256.0,0.0001599,2]
[333981312,1722666645514,-211.89331095,0.00015999,2]
[333981313,1722666645523,-519.644,0.00015999,2]
[333981314,1722666645533,-1734.248,0.00015999,2]
[333981315,1722666645543,-150.0,0.00015999,2]
[333981316,1722666645552,-984.6338,0.00015999,2]
[333981317,1722666645562,-7000.0,0.00015999,3]
[333981318,1722666645572,-288.0,0.00015999,2]
[333981319,1722666645582,-5890.79,0.00015999,2]
[333981320,1722666645592,-5121.0,0.00015999,2]
[333981321,1722666645601,-1686.197,0.00015999,2]
[333981322,1722666645611,-1896.367,0.00015999,2]
[333981323,1722666645622,-1668.651,0.00015999,2]
[333981324,1722666645634,-815.158,0.00015999,2]
[333981325,1722666645644,-713.0,0.00015999,2]
[333981326,1722666645656,-1847.06789306,0.00016,2]
[333981327,1722666645666,-242.63344416,0.00016,2]
[333981328,1722666645676,-167.42399263,0.00016,2]
[333981329,1722666645686,-380.35026015,0.00016,2]
[333981331,1722666645696,-272.01814738,0.00016,2]
[333981333,1722666645708,-189.63511947,0.00016,2]
[333981334,1722666645718,-186.93158375,0.00016,2]
[333981336,1722666645728,-251.73498731,0.00016,2]
[333981338,1722666645737,-278.94124405,0.00016,2]
[333981340,1722666645746,-154.78229196,0.00016,2]
[333981341,1722666645757,-161.7853322,0.00016,2]
[333981342,1722666645766,-216.46002898,0.00016,2]
[333981343,1722666645776,-240.07281815,0.00016,2]
[333981344,1722666645787,-13993995.36059444,0.00016,2]
[333981345,1722666645796,-1609.79470923,0.00016,2]
[333981346,1722666645806,-300.0,0.00016,2]
[333981347,1722666645816,-500.34,0.00016,2]
[333981348,1722666645826,-2562.21079912,0.00016,2]
[333981349,1722666645835,-5927.52180783,0.00016,2]
[333981350,1722666645845,-151.0,0.00016,2]
[333981351,1722666645855,-151.0,0.00016,2]
[333981352,1722666645864,-151.0,0.00016,2]
[333981353,1722666645874,-151.0,0.00016,2]
[333981354,1722666645884,-151.0,0.00016,2]
[333981355,1722666645894,-2255.8011722,0.00016,2]
[333981356,1722666645905,-1000.0,0.00016,2]
[333981357,1722666645915,-2000.0,0.00016,2]
[333981358,1722666645925,-200.0,0.00016,2]
[333981359,1722666645935,-2000.0,0.00016,2]
[333981360,1722666645945,-200.0,0.00016,2]
[333981361,1722666645955,-492.989248,0.00016,2]
[333981362,1722666645964,-2182.3463877,0.00016,2]
[333981363,1722666645975,-2000.0,0.00016,2]
[333981364,1722666645984,-200.0,0.00016,2]
[333981365,1722666645994,-348.9722108,0.00016,2]
[333981366,1722666646004,-1000.0,0.00016,2]
[333981367,1722666646014,-151.0,0.00016,2]
[333981368,1722666646023,-547.0,0.00016,2]
[333981369,1722666646033,-694.666789,0.00016,2]
[333981370,1722666646043,-694.666789,0.00016,2]
[333981371,1722666646052,-916.334531,0.00016,2]
[333981372,1722666646062,-10000.0,0.00016,2]
[333981373,1722666646071,-916.334531,0.00016,2]
[333981374,1722666646082,-10000.0,0.00016,2]
[333981375,1722666646092,-10000.0,0.00016,2]
[333981376,1722666646101,-151.383998,0.00016,2]
[333981377,1722666646111,-46552.1683826,0.00016,2]
[333981378,1722666646121,-595.3819881,0.00016,2]
[333981379,1722666646131,-226.0,0.00016,2]
[333981380,1722666646140,-2000.0,0.00016,2]
[333981381,1722666646151,-917.582305,0.00016,2]
[333981382,1722666646161,-200.0,0.00016,2]
[333981383,1722666646171,-917.582305,0.00016,2]
[333981384,1722666646180,-684.008137,0.00016,2]
[333981385,1722666646190,-684.008137,0.00016,2]
[333981386,1722666646199,-1144.69914,0.00016,2]
[333981387,1722666646209,-2698.0809623,0.00016005,2]
[333981388,1722666646219,-1123.0188209,0.00016005,2]
[333981389,1722666646229,-170.047915,0.00016022,2]
[333981390,1722666646239,-170.047915,0.00016023,2]
[333981391,1722666646249,-170.275467,0.00016025,2]
[333981392,1722666646258,-848.44,0.00016064,2]
[333981393,1722666646268,-200.0,0.000161,2]
[333981394,1722666646277,-201.0,0.000161,2]
[333981395,1722666646287,-158.08331138,0.00016159,2]
[333981396,1722666646296,-2000.0,0.0001616,2]
[333981397,1722666646306,-200.0,0.0001616,2]
[333981398,1722666646316,-2000.0,0.0001616,2]
[333981399,1722666646326,-200.0,0.0001616,2]
[333981400,1722666646336,-2000.0,0.0001616,2]
[333981401,1722666646346,-200.0,0.0001616,2]
[333981402,1722666646355,-2000.0,0.0001616,2]
[333981403,1722666646366,-200.0,0.0001616,2]
[333981404,1722666646375,-150.0,0.00016187,2]
[333981405,1722666646385,-150.0,0.00016187,2]
[333981406,1722666646394,-150.0,0.00016187,2]
[333981407,1722666646405,-1000.0,0.000162,2]
[333981408,1722666646415,-250000.0,0.000163,2]
[333981409,1722666646425,-1000.0,0.00016312,2]
[333981410,1722666646435,-2000.0,0.00016322,2]
[333981411,1722666646446,-200.0,0.00016322,2]
[333981412,1722666646456,-2000.0,0.00016322,2]
[333981413,1722666646465,-200.0,0.00016322,2]
[333981414,1722666646475,-2000.0,0.00016322,2]
[333981415,1722666646486,-200.0,0.00016322,2]
[333981416,1722666646496,-1244.96921346,0.00016338,2]
[333981417,1722666646506,-200.0,0.0001637,2]
[333981418,1722666646516,-201.0,0.0001637,2]
[333981419,1722666646527,-1286.0,0.000164,2]
[333981420,1722666646537,-1017.8483,0.000164,2]
[333981421,1722666646547,-1870.5665849,0.00016427,2]
[333981422,1722666646556,-39980.5228187,0.00016427,2]
[333981423,1722666646566,-511.853784,0.00016427,2]
[333981424,1722666646575,-2319.5578262,0.00016427,2]
[333981425,1722666646585,-965.4666155,0.00016427,2]
[333981426,1722666646594,-151.0,0.00016438,2]
[333981427,1722666646604,-151.314838,0.00016438,2]
[333981428,1722666646614,-151.0,0.00016438,2]
[333981429,1722666646626,-151.0,0.00016438,2]
[333981430,1722666646637,-151.627755,0.00016438,2]
[333981431,1722666646646,-151.0,0.00016438,2]
[333981432,1722666646657,-151.0,0.00016438,2]
[333981433,1722666646667,-151.0,0.00016438,2]
[333981434,1722666646678,-151.0,0.00016438,2]
[333981435,1722666646687,-151.0,0.00016438,2]
[333981436,1722666646699,-243.95236,0.00016438,2]
[333981437,1722666646709,-151.0,0.00016438,2]
[333981438,1722666646720,-151.0,0.00016438,2]
[333981439,1722666646729,-151.0,0.00016438,2]
[333981440,1722666646739,-151.0,0.00016438,2]
[333981441,1722666646750,-191.579968,0.00016438,2]
[333981442,1722666646759,-500.0,0.00016438,2]
[333981443,1722666646769,-151.0,0.00016438,2]
[333981444,1722666646778,-151.0,0.00016438,2]
[333981445,1722666646788,-503.89536081,0.00016438,2]
[333981446,1722666646798,-151.0,0.00016438,2]
[333981447,1722666646807,-151.0,0.00016438,2]
[333981448,1722666646817,-474.60725536,0.00016438,2]
[333981449,1722666646827,-500.0,0.00016438,2]
[333981450,1722666646836,-503.8821897,0.00016438,2]
[333981451,1722666646846,-151.0,0.00016438,2]
[333981452,1722666646855,-500.61700976,0.00016438,2]
[333981453,1722666646865,-500.56908896,0.00016438,2]
[333981454,1722666646875,-500.85956308,0.00016438,2]
[333981455,1722666646885,-500.0,0.00016438,2]
[333981456,1722666646895,-500.54106248,0.00016438,2]
[333981457,1722666646906,-502.7611501,0.00016438,2]
[333981458,1722666646915,-500.0,0.00016438,2]
[333981459,1722666647020,-500.0,0.00016438,2]
[333981460,1722666647031,-500.92829193,0.00016438,2]
[333981461,1722666647041,-599.49648797,0.00016438,2]
[333981462,1722666647050,-501.20195963,0.00016438,2]
[333981463,1722666647060,-504.43234617,0.00016438,2]
[333981464,1722666647069,-554.11342874,0.00016438,2]
[333981465,1722666647079,-501.86835785,0.00016438,2]
[333981466,1722666647089,-502.94825273,0.00016438,2]
[333981467,1722666647098,-500.81023475,0.00016438,2]
[333981468,1722666647108,-500.0,0.00016438,2]
[333981469,1722666647118,-151.0,0.00016438,2]
[333981470,1722666647128,-151.0,0.00016438,2]
[333981471,1722666647138,-500.44375764,0.00016438,2]
[333981472,1722666647147,-151.0,0.00016438,2]
[333981473,1722666647158,-504.69139817,0.00016438,2]
[333981474,1722666647167,-502.48138019,0.00016438,2]
[333981475,1722666647177,-151.0,0.00016438,2]
[333981476,1722666647187,-503.50207626,0.00016438,2]
[333981477,1722666647196,-151.0,0.00016438,2]
[333981478,1722666647207,-500.0,0.00016438,2]
[333981479,1722666647216,-165.825502,0.00016438,2]
[333981480,1722666647226,-503.94597983,0.00016438,2]
[333981481,1722666647235,-500.7554622,0.00016438,2]
[333981482,1722666647245,-500.699476,0.00016438,2]
[333981483,1722666647255,-500.67929145,0.00016438,2]
[333981484,1722666647265,-505.00916665,0.00016438,2]
[333981485,1722666647275,-500.0,0.00016438,2]
[333981486,1722666647284,-501.99667781,0.00016438,2]
[333981487,1722666647294,-500.0,0.00016438,2]
[333981488,1722666647304,-500.6338749,0.00016438,2]
[333981489,1722666647313,-500.0,0.00016438,2]
[333981490,1722666647324,-500.0,0.00016438,2]
[333981491,1722666647334,-501.10234781,0.00016438,2]
[333981492,1722666647344,-501.50867308,0.00016438,2]
[333981493,1722666647354,-500.0,0.00016438,2]
[333981494,1722666647363,-500.0,0.00016438,2]
[333981495,1722666647372,-500.0,0.00016438,2]
[333981496,1722666647382,-474.32413131,0.00016438,2]
[333981497,1722666647392,-398.81181887,0.00016438,2]
[333981498,1722666647401,-989.73,0.00016438,2]
[333981499,1722666647411,-289.37858,0.00016438,2]
[333981500,1722666647420,-501.6391503,0.00016438,2]
[333981501,1722666647430,-501.34570157,0.00016438,2]
[333981502,1722666647440,-500.0,0.00016438,2]
[333981503,1722666647450,-500.0,0.00016438,2]
[333981504,1722666647459,-500.0,0.00016438,2]
[333981505,1722666647469,-788.91,0.00016438,2]
[333981506,1722666647479,-500.0,0.00016438,2]
[333981507,1722666647488,-151.167146,0.00016438,2]
[333981508,1722666647498,-500.0,0.00016438,2]
[333981509,1722666647507,-500.0,0.00016438,2]
[333981510,1722666647516,-500.0,0.00016438,2]
[333981511,1722666647526,-500.0,0.00016438,2]
[333981512,1722666647536,-500.0,0.00016438,2]
[333981513,1722666647545,-500.0,0.00016438,2]
[333981514,1722666647554,-500.0,0.00016438,2]
[333981515,1722666647564,-237.05,0.00016438,2]
[333981516,1722666647573,-237.05,0.00016438,2]
[333981517,1722666647582,-500.0,0.00016438,2]
[333981518,1722666647591,-237.05,0.00016438,2]
[333981519,1722666647601,-237.05,0.00016438,2]
[333981520,1722666647610,-500.0,0.00016438,2]
[333981521,1722666647621,-788.504572,0.00016438,2]
[333981522,1722666647635,-500.97407855,0.00016438,2]
[333981523,1722666647645,-500.0,0.00016438,2]
[333981524,1722666647656,-788.504572,0.00016438,2]
[333981525,1722666647667,-500.0,0.00016438,2]
[333981526,1722666647676,-501.98224109,0.00016438,2]
[333981527,1722666647685,-501.40301739,0.00016438,2]
[333981528,1722666647695,-500.0,0.00016438,2]
[333981529,1722666647707,-500.0,0.00016438,2]
[333981530,1722666647716,-151.0,0.00016438,2]
[333981531,1722666647726,-151.0,0.00016438,2]
[333981532,1722666647735,-500.0,0.00016438,2]
[333981533,1722666647745,-163.840729,0.00016438,2]
[333981534,1722666647758,-500.0,0.00016438,2]
[333981535,1722666647767,-151.0,0.00016438,2]
[333981536,1722666647777,-151.0,0.00016438,2]
[333981537,1722666647786,-500.0,0.00016438,2]
[333981538,1722666647795,-500.0,0.00016438,2]
[333981539,1722666647804,-500.87719328,0.00016438,2]
[333981540,1722666647814,-500.0,0.00016438,2]
[333981541,1722666647824,-500.0,0.00016438,2]
[333981542,1722666647833,-500.0,0.00016438,2]
[333981543,1722666647843,-500.0,0.00016438,2]
[333981544,1722666647852,-567.17,0.00016438,2]
[333981545,1722666647862,-500.0,0.00016438,2]
[333981546,1722666647871,-501.78141847,0.00016438,2]
[333981547,1722666647880,-500.44030229,0.00016438,2]
[333981548,1722666647889,-500.0,0.00016438,2]
[333981549,1722666647899,-500.0,0.00016438,2]
[333981550,1722666647910,-500.0,0.00016438,2]
[333981551,1722666647920,-504.2370714,0.00016438,2]
[333981552,1722666647929,-500.0,0.00016438,2]
[333981553,1722666647940,-399.7811227,0.00016438,2]
[333981554,1722666647949,-500.0,0.00016438,2]
[333981555,1722666647959,-500.0,0.00016438,2]
[333981556,1722666647968,-1103.75,0.00016438,2]
[333981557,1722666647977,-1066.77,0.00016438,2]
[333981558,1722666647987,-500.0,0.00016438,2]
[333981559,1722666647997,-500.0,0.00016438,2]
[333981560,1722666648006,-500.0,0.00016438,2]
[333981561,1722666648016,-500.0,0.00016438,2]
[333981562,1722666648026,-500.0,0.00016438,2]
[333981563,1722666648035,-500.0,0.00016438,2]
[333981564,1722666648045,-586.69989453,0.00016438,2]
[333981565,1722666648054,-593.51,0.00016438,2]
[333981566,1722666648064,-500.0,0.00016438,2]
[333981567,1722666648074,-766.07,0.00016438,2]
[333981568,1722666648083,-496.99558085,0.00016438,2]
[333981569,1722666648094,-500.0,0.00016438,2]
[333981570,1722666648103,-300.0,0.00016438,2]
[333981571,1722666648113,-758.83,0.00016438,2]
[333981572,1722666648122,-500.0,0.00016438,2]
[333981573,1722666648132,-500.0,0.00016438,2]
[333981574,1722666648142,-500.0,0.00016438,2]
[333981575,1722666648153,-500.0,0.00016438,2]
[333981576,1722666648162,-500.0,0.00016438,2]
[333981577,1722666648171,-1147.83,0.00016438,2]
[333981578,1722666648181,-500.0,0.00016438,2]
[333981579,1722666648190,-501.8848933,0.00016438,2]
[333981580,1722666648201,-569.94,0.00016438,2]
[333981581,1722666648210,-500.0,0.00016438,2]
[333981582,1722666648220,-500.0,0.00016438,2]
[333981583,1722666648230,-500.64931137,0.00016438,2]
[333981584,1722666648239,-500.989809,0.00016438,2]
[333981585,1722666648249,-500.0,0.00016438,2]
[333981586,1722666648258,-273.14075118,0.00016438,2]
[333981587,1722666648268,-529.39765529,0.00016438,2]
[333981588,1722666648277,-500.0,0.00016438,2]
[333981589,1722666648287,-500.0,0.00016438,2]
[333981590,1722666648297,-500.0,0.00016438,2]
[333981591,1722666648306,-500.98728952,0.00016438,2]
[333981592,1722666648316,-500.0,0.00016438,2]
[333981593,1722666648326,-500.0,0.00016438,2]
[333981594,1722666648336,-500.0,0.00016438,2]
[333981595,1722666648346,-500.0,0.00016438,2]
[333981596,1722666648356,-500.0,0.00016438,2]
[333981597,1722666648366,-500.0,0.00016438,2]
[333981598,1722666648376,-500.0,0.00016438,2]
[333981599,1722666648387,-500.0,0.00016438,2]
[333981600,1722666648397,-500.0,0.00016438,2]
[333981601,1722666648412,-500.0,0.00016438,2]
[333981602,1722666648425,-500.0,0.00016438,2]
[333981603,1722666648434,-501.61519551,0.00016438,2]
[333981604,1722666648444,-500.0,0.00016438,2]
[333981605,1722666648455,-500.0,0.00016438,2]
[333981606,1722666648464,-500.0,0.00016438,2]
[333981607,1722666648474,-561.98002927,0.00016438,2]
[333981608,1722666648484,-500.0,0.00016438,2]
[333981609,1722666648493,-500.0,0.00016438,2]
[333981610,1722666648503,-500.0,0.00016438,2]
[333981611,1722666648513,-504.18182146,0.00016438,2]
[333981612,1722666648523,-500.0,0.00016438,2]
[333981613,1722666648532,-501.75738291,0.00016438,2]
[333981614,1722666648542,-500.0,0.00016438,2]
[333981615,1722666648552,-500.0,0.00016438,2]
[333981616,1722666648562,-500.0,0.00016438,2]
[333981617,1722666648572,-500.0,0.00016438,2]
[333981618,1722666648582,-500.0,0.00016438,2]
[333981619,1722666648593,-500.0,0.00016438,2]
[333981620,1722666648603,-500.0,0.00016438,2]
[333981621,1722666648612,-800.64,0.00016438,2]
[333981622,1722666648622,-500.0,0.00016438,2]
[333981623,1722666648635,-501.14094419,0.00016438,2]
[333981624,1722666648645,-500.0,0.00016438,2]
[333981625,1722666648656,-715.96,0.00016438,2]
[333981626,1722666648667,-501.48080576,0.00016438,2]
[333981627,1722666648677,-500.0,0.00016438,2]
[333981628,1722666648686,-500.0,0.00016438,2]
[333981629,1722666648696,-500.0,0.00016438,2]
[333981630,1722666648707,-500.62767868,0.00016438,2]
[333981631,1722666648717,-500.0,0.00016438,2]
[333981632,1722666648727,-500.0,0.00016438,2]
[333981633,1722666648736,-500.0,0.00016438,2]
[333981634,1722666648746,-500.0,0.00016438,2]
[333981635,1722666648756,-500.0,0.00016438,2]
[333981636,1722666648766,-517.53,0.00016438,2]
[333981637,1722666648775,-501.53719975,0.00016438,2]
[333981638,1722666648785,-151.0,0.00016438,2]
[333981639,1722666648795,-500.0,0.00016438,2]
[333981640,1722666648805,-151.0,0.00016438,2]
[333981641,1722666648815,-500.0,0.00016438,2]
[333981642,1722666648824,-503.79402549,0.00016438,2]
[333981643,1722666648835,-543.28919918,0.00016438,2]
[333981644,1722666648845,-702.72,0.00016438,2]
[333981645,1722666648855,-500.0,0.00016438,2]
[333981646,1722666648865,-544.10880082,0.00016438,2]
[333981647,1722666648875,-500.0,0.00016438,2]
[333981648,1722666648885,-500.0,0.00016438,2]
[333981649,1722666648895,-500.0,0.00016438,2]
[333981650,1722666648904,-500.0,0.00016438,2]
[333981651,1722666648914,-500.0,0.00016438,2]
[333981652,1722666648924,-500.0,0.00016438,2]
[333981653,1722666648933,-397.11106371,0.00016438,2]
[333981654,1722666648944,-937.04,0.00016438,2]
[333981655,1722666648953,-500.0,0.00016438,2]
[333981656,1722666648963,-500.0,0.00016438,2]
[333981657,1722666648972,-501.03770649,0.00016438,2]
[333981658,1722666648982,-500.0,0.00016438,2]
[333981659,1722666648991,-500.0,0.00016438,2]
[333981660,1722666649001,-500.0,0.00016438,2]
[333981661,1722666649010,-500.0,0.00016438,2]
[333981662,1722666649020,-500.0,0.00016438,2]
[333981663,1722666649030,-500.0,0.00016438,2]
[333981664,1722666649039,-500.0,0.00016438,2]
[333981665,1722666649048,-502.2366081,0.00016438,2]
[333981666,1722666649058,-500.0,0.00016438,2]
[333981667,1722666649068,-500.0,0.00016438,2]
[333981668,1722666649077,-500.0,0.00016438,2]
[333981669,1722666649086,-519.55159755,0.00016438,2]
[333981670,1722666649096,-500.0,0.00016438,2]
[333981671,1722666649106,-500.0,0.00016438,2]
[333981672,1722666649115,-887.0,0.00016438,2]
[333981673,1722666649125,-500.0,0.00016438,2]
[333981674,1722666649134,-500.0,0.00016438,2]
[333981675,1722666649144,-810.08,0.00016438,2]
[333981676,1722666649154,-501.7259353,0.00016438,2]
[333981677,1722666649164,-500.0,0.00016438,2]
[333981678,1722666649173,-500.0,0.00016438,2]
[333981679,1722666649183,-544.56,0.00016438,2]
[333981680,1722666649194,-500.0,0.00016438,2]
[333981681,1722666649204,-151.0,0.00016438,2]
[333981682,1722666649214,-500.0,0.00016438,2]
[333981683,1722666649223,-531.69844076,0.00016438,2]
[333981684,1722666649233,-151.0,0.00016438,2]
[333981685,1722666649243,-500.0,0.00016438,2]
[333981686,1722666649253,-500.0,0.00016438,2]
[333981687,1722666649262,-500.0,0.00016438,2]
[333981688,1722666649271,-603.96,0.00016438,2]
[333981689,1722666649281,-500.0,0.00016438,2]
[333981690,1722666649290,-501.80893873,0.00016438,2]
[333981691,1722666649299,-500.0,0.00016438,2]
[333981692,1722666649309,-500.0,0.00016438,2]
[333981693,1722666649319,-501.36617968,0.00016438,2]
[333981694,1722666649328,-500.0,0.00016438,2]
[333981695,1722666649337,-500.0,0.00016438,2]
[333981696,1722666649347,-500.0,0.00016438,2]
[333981697,1722666649356,-500.0,0.00016438,2]
[333981698,1722666649366,-501.1563011,0.00016438,2]
[333981699,1722666649375,-500.0,0.00016438,2]
[333981700,1722666649384,-151.0,0.00016438,2]
[333981701,1722666649394,-500.0,0.00016438,2]
[333981702,1722666649404,-151.0,0.00016438,2]
[333981703,1722666649415,-500.0,0.00016438,2]
[333981704,1722666649424,-1120.78,0.00016438,2]
[333981705,1722666649434,-500.0,0.00016438,2]
[333981706,1722666649444,-500.0,0.00016438,2]
[333981707,1722666649454,-500.0,0.00016438,2]
[333981708,1722666649463,-794.41,0.00016438,2]
[333981709,1722666649472,-500.0,0.00016438,2]
[333981710,1722666649482,-500.0,0.00016438,2]
[333981711,1722666649491,-500.0,0.00016438,2]
[333981712,1722666649501,-500.0,0.00016438,2]
[333981713,1722666649510,-492.10041352,0.00016438,2]
[333981714,1722666649518,-500.0,0.00016438,2]
[333981715,1722666649527,-1111.45,0.00016438,2]
[333981716,1722666649537,-502.87234811,0.00016438,2]
[333981717,1722666649546,-151.0,0.00016438,2]
[333981718,1722666649555,-500.0,0.00016438,2]
[333981719,1722666649565,-500.0,0.00016438,2]
[333981720,1722666649574,-151.0,0.00016438,2]
[333981721,1722666649584,-500.0,0.00016438,2]
[333981722,1722666649593,-967.31,0.00016438,2]
[333981723,1722666649602,-967.31,0.00016438,2]
[333981724,1722666649611,-967.31,0.00016438,2]
[333981725,1722666649620,-967.31,0.00016438,2]
[333981726,1722666649633,-500.0,0.00016438,2]
[333981727,1722666649642,-967.31,0.00016438,2]
[333981728,1722666649652,-967.31,0.00016438,2]
[333981729,1722666649662,-500.0,0.00016438,2]
[333981730,1722666649671,-151.0,0.00016438,2]
[333981731,1722666649680,-967.31,0.00016438,2]
[333981732,1722666649690,-187.559612,0.00016438,2]
[333981733,1722666649701,-967.31,0.00016438,2]
[333981734,1722666649711,-967.31,0.00016438,2]
[333981735,1722666649720,-500.0,0.00016438,2]
[333981736,1722666649729,-967.31,0.00016438,2]
[333981737,1722666649739,-967.31,0.00016438,2]
[333981738,1722666649748,-967.31,0.00016438,2]
[333981739,1722666649758,-967.31,0.00016438,2]
[333981740,1722666649768,-500.0,0.00016438,2]
[333981741,1722666649777,-967.31,0.00016438,2]
[333981742,1722666649786,-967.31,0.00016438,2]
[333981743,1722666649795,-967.31,0.00016438,2]
[333981744,1722666649804,-633.16,0.00016438,2]